bitfinex-derivatives/quotes_SOLF0:USTF0_20250105
["timestamp","ask_amount","ask_price","bid_price","bid_amount"]
[1736090177302,1.3897,212.81,212.71,7.43014336]
[1736090177502,7.43014336,212.77,212.71,7.43014336]
[1736090177902,7.43014336,212.73,212.66,6.2919]
[1736090178105,7.43014336,212.73,212.66,13.72204336]
[1736090179100,7.43014336,212.71,212.66,4.7617]
[1736090179307,7.43014336,212.69,212.66,3.32]
[1736090179505,7.43014336,212.69,212.66,5.6716]
[1736090179705,7.43014336,212.67,212.66,5.6716]
[1736090181007,11.68052551,212.72,212.67,2.3516]
[1736090181206,3.32,212.77,212.66,3.32]
[1736090181207,11.68052551,212.75,212.66,3.32]
[1736090183419,11.68052551,212.75,212.7,2.3512]
[1736090185923,11.68052551,212.75,212.71,2.3511]
[1736090186426,11.68052551,212.75,212.72,2.351]
[1736090189527,2.3508,212.74,212.69,2.3513]
[1736090189719,11.68052551,212.71,212.65,3.32]
[1736090190321,14.03172551,212.71,212.62,1.4718]
[1736090190623,11.68052551,212.68,212.62,3.32]
[1736090190836,11.68052551,212.68,212.63,2.352]
[1736090191019,11.68052551,212.68,212.61,4.7543]
[1736090192122,11.68052551,212.68,212.63,2.352]
[1736090194328,11.68052551,212.68,212.56,13.09822551]
[1736090194628,11.68052551,212.68,212.59,3.18]
[1736090195428,2.3518,212.66,212.6,7.93142009]
[1736090196421,11.68052551,212.65,212.6,5.57902009]
[1736090196629,11.68052551,212.65,212.58,5.5325]
[1736090196833,11.68052551,212.65,212.58,2.3525]
[1736090197327,2.3521,212.63,212.57,2.3527]
[1736090199423,11.68052551,212.62,212.57,2.3527]
[1736090199831,14.03272551,212.62,212.57,2.3527]
[1736090200425,14.03272551,212.62,212.51,1.422]
[1736090200426,2.3526,212.59,212.51,1.422]
[1736090200625,11.68052551,212.59,212.52,2.3532]
[1736090201433,2.3526,212.58,212.52,2.3532]
[1736090203034,7.48496687,212.56,212.52,2.3532]
[1736090203534,7.48496687,212.56,212.51,1.422]
[1736090203834,7.48496687,212.56,212.53,2.3531]
[1736090204336,7.48496687,212.54,212.51,1.422]
[1736090204528,7.48496687,212.54,212.52,2.3533]
[1736090205036,7.48496687,212.54,212.5,5.5335]
[1736090205934,7.48496687,212.54,212.5,2.3535]
[1736090207636,7.48496687,212.54,212.51,2.3534]
[1736090208336,2.3524,212.6,212.51,2.3533]
[1736090208541,7.48496687,212.57,212.5,7.48496687]
[1736090208835,7.48496687,212.57,212.52,2.3532]
[1736090209034,7.48496687,212.57,212.5,7.48496687]
[1736090209235,7.48496687,212.55,212.5,7.48496687]
[1736090211538,7.48496687,212.55,212.54,2.353]
[1736090212233,1.5268,212.61,212.57,2.3527]
[1736090212443,7.48496687,212.6,212.54,7.48496687]
[1736090212839,1.4591,212.64,212.59,2.3525]
[1736090213139,7.48496687,212.61,212.59,2.3525]
[1736090213339,7.48496687,212.61,212.5,3.18]
[1736090213539,2.3521,212.63,212.51,7.48496687]
[1736090213735,7.48496687,212.61,212.53,7.48496687]
[1736090214041,7.48496687,212.61,212.55,7.48496687]
[1736090214235,7.48496687,212.61,212.56,2.3527]
[1736090214434,7.48496687,212.61,212.55,7.48496687]
[1736090214632,1.3904,212.66,212.57,7.48496687]
[1736090214838,7.48496687,212.64,212.61,2.3522]
[1736090215040,1.3904,212.66,212.61,2.3522]
[1736090215334,7.48496687,212.65,212.59,7.48496687]
[1736090215540,7.48496687,212.65,212.63,2.352]
[1736090218243,7.48496687,212.65,212.56,3.18]
[1736090218445,7.48496687,212.62,212.56,3.18]
[1736090218839,2.3518,212.65,212.58,2.3526]
[1736090219042,7.48496687,212.65,212.58,7.48496687]
[1736090220039,7.48496687,212.65,212.62,2.3521]
[1736090220239,7.48496687,212.65,212.58,7.48496687]
[1736090220643,7.48496687,212.65,212.6,2.3523]
[1736090221050,7.48496687,212.61,212.57,2.3526]
[1736090221243,7.48496687,212.59,212.57,2.3526]
[1736090221642,7.48496687,212.61,212.56,3.18]
[1736090222039,1.4974,212.72,212.56,3.18]
[1736090222237,7.48496687,212.62,212.56,10.66496687]
[1736090222441,1.4974,212.72,212.56,10.66496687]
[1736090222745,7.48496687,212.64,212.56,10.66496687]
[1736090223041,7.48496687,212.64,212.4,18.7992]
[1736090223042,3.1,212.66,212.49,31.32311809]
[1736090223247,3.1,212.66,212.51,7.48496687]
[1736090223248,7.48496687,212.58,212.51,7.48496687]
[1736090223442,7.48496687,212.56,212.51,7.48496687]
[1736090223642,7.48496687,212.56,212.53,2.3531]
[1736090224043,7.48496687,212.56,212.51,7.48496687]
[1736090224444,7.48496687,212.56,212.5,3.1]
[1736090225339,7.48496687,212.54,212.5,2.3534]
[1736090225542,7.48496687,212.52,212.47,3.1]
[1736090226246,7.48496687,212.52,212.47,10.58496687]
[1736090226447,7.48496687,212.52,212.48,2.3536]
[1736090227048,11.69810382,212.56,212.48,2.3536]
[1736090227849,2.3529,212.55,212.48,2.3536]
[1736090228446,11.69810382,212.56,212.46,3.1]
[1736090228648,14.05090382,212.56,212.49,2.3536]
[1736090229643,11.69810382,212.56,212.5,2.3535]
[1736090229847,11.69810382,212.59,212.46,14.79810382]
[1736090230647,11.69810382,212.59,212.49,11.69810382]
[1736090230951,11.69810382,212.59,212.5,1.4367]
[1736090231648,14.05030382,212.62,212.54,2.3529]
[1736090231848,11.69810382,212.62,212.52,3.1]
[1736090233451,14.05040382,212.62,212.55,2.3529]
[1736090235452,14.05040382,212.62,212.56,2.3528]
[1736090235854,11.69810382,212.62,212.52,3.1]
[1736090237553,11.69810382,212.62,212.57,2.3526]
[1736090238161,11.69810382,212.62,212.55,2.3529]
[1736090238457,11.69810382,212.59,212.5,2.9229]
[1736090238652,11.69810382,212.59,212.5,1.4367]
[1736090238859,11.69810382,212.56,212.45,1.4004]
[1736090239057,11.69810382,212.56,212.46,3.1]
[1736090239553,2.3529,212.55,212.46,3.1]
[1736090239855,11.69810382,212.56,212.47,3.1]
[1736090240158,14.05090382,212.56,212.5,2.3534]
[1736090241559,14.05090382,212.56,212.51,2.3534]
[1736090244959,14.05090382,212.56,212.52,2.3532]
[1736090247185,11.69810382,212.59,212.47,3.1]
[1736090247757,14.05060382,212.59,212.54,2.353]
[1736090248155,11.69810382,212.62,212.49,11.69810382]
[1736090248454,14.05030382,212.62,212.52,2.3532]
[1736090248659,14.05030382,212.62,212.5,1.4745]
[1736090248960,7.48253209,212.6,212.53,7.48253209]
[1736090249154,2.3521,212.63,212.53,7.48253209]
[1736090249360,7.48253209,212.6,212.53,7.48253209]
[1736090249559,7.48253209,212.6,212.53,10.58253209]
[1736090251260,7.48253209,212.6,212.55,2.3529]
[1736090251559,7.48253209,212.58,212.53,3.1]
[1736090252663,7.48253209,212.58,212.54,2.3529]
[1736090252968,7.48253209,212.56,212.53,5.4531]
[1736090253166,7.48253209,212.56,212.53,3.1]
[1736090253459,7.48253209,212.56,212.5,1.4745]
[1736090253963,7.48253209,212.56,212.51,2.3533]
[1736090254764,7.48253209,212.54,212.51,2.3533]
[1736090255064,7.48253209,212.54,212.52,2.3532]
[1736090255958,7.48253209,212.54,212.49,2.3536]
[1736090256565,7.48253209,212.52,212.49,2.3536]
[1736090257264,7.48253209,212.5,212.42,1.5178]
[1736090257574,7.48253209,212.5,212.43,3.04]
[1736090258066,7.48253209,212.5,212.46,2.3539]
[1736090258461,7.48253209,212.47,212.3,6.48334578]
[1736090258662,3.04,212.52,212.41,7.48253209]
[1736090258862,7.48253209,212.51,212.43,7.48253209]
[1736090259465,7.48253209,212.51,212.48,2.3537]
[1736090259662,7.48253209,212.53,212.48,2.3537]
[1736090260571,7.48253209,212.51,212.48,2.3537]
[1736090261066,17.09416729,212.54,212.48,2.3537]
[1736090261869,2.3531,212.53,212.48,2.3537]
[1736090262572,2.3533,212.52,212.48,2.3537]
[1736090262768,14.74116729,212.54,212.41,11.70116729]
[1736090262970,11.70116729,212.51,212.4,1.3869]
[1736090263172,14.05456729,212.51,212.4,1.3869]
[1736090263567,2.3535,212.5,212.4,1.3869]
[1736090263871,1.4745,212.53,212.4,1.3869]
[1736090263872,11.70116729,212.48,212.4,1.3869]
[1736090265474,11.70116729,212.48,212.42,2.3543]
[1736090265678,11.70116729,212.48,212.4,1.3869]
[1736090265978,11.70116729,212.51,212.4,1.3869]
[1736090266690,1.4745,212.53,212.41,11.70116729]
[1736090266976,1.4745,212.53,212.42,3.04]
[1736090267180,1.4745,212.53,212.48,2.3536]
[1736090267879,3.8277,212.53,212.48,2.3536]
[1736090268376,1.4745,212.53,212.42,3.04]
[1736090268677,2.3533,212.52,212.42,3.04]
[1736090269074,3.8277,212.53,212.48,2.3537]
[1736090271482,3.8277,212.53,212.49,2.3536]
[1736090271677,11.70116729,212.54,212.43,11.70116729]
[1736090271881,11.70116729,212.57,212.43,11.70116729]
[1736090272087,11.70116729,212.54,212.48,2.3536]
[1736090272586,2.3533,212.53,212.48,2.3536]
[1736090273477,11.70116729,212.54,212.48,2.3536]
[1736090273679,2.3533,212.52,212.48,2.3536]
[1736090273883,11.70116729,212.54,212.43,11.70116729]
[1736090274076,11.70116729,212.54,212.5,2.3535]
[1736090275176,14.05426729,212.54,212.49,2.3536]
[1736090276285,11.70116729,212.54,212.47,2.3537]
[1736090276485,11.70116729,212.54,212.42,3.04]
[1736090276787,2.3535,212.5,212.46,2.3539]
[1736090276986,14.74116729,212.54,212.42,3.04]
[1736090277686,14.74116729,212.54,212.43,11.70116729]
[1736090277885,11.70116729,212.54,212.43,11.70116729]
[1736090278787,11.70116729,212.57,212.43,11.70116729]
[1736090278986,11.70116729,212.57,212.44,1.5064]
[1736090279688,11.70116729,212.57,212.46,11.70116729]
[1736090279885,14.05396729,212.57,212.46,11.70116729]
[1736090280187,16.21066729,212.6,212.46,11.70116729]
[1736090280882,13.17066729,212.6,212.46,11.70116729]
[1736090281080,13.17066729,212.6,212.49,11.70116729]
[1736090281287,13.17066729,212.6,212.53,2.3531]
[1736090281488,13.17066729,212.6,212.5,4.5684]
[1736090281489,13.17066729,212.6,212.51,3.04]
[1736090282582,13.17066729,212.6,212.55,2.3529]
[1736090283083,7.48437157,212.57,212.55,2.3529]
[1736090283280,7.48437157,212.57,212.52,2.3532]
[1736090283488,7.48437157,212.55,212.51,3.04]
[1736090284391,7.48437157,212.55,212.5,1.5284]
[1736090285590,7.48437157,212.55,212.51,2.3534]
[1736090285793,7.48437157,212.55,212.5,1.5284]
[1736090285990,7.48437157,212.57,212.5,1.5284]
[1736090286694,7.48437157,212.57,212.52,2.3532]
[1736090287295,1.4695,212.6,212.55,2.3529]
[1736090287499,7.48437157,212.59,212.55,2.3529]
[1736090287893,7.48437157,212.59,212.51,7.48437157]
[1736090288200,7.48437157,212.57,212.51,7.48437157]
[1736090288394,7.48437157,212.57,212.5,1.5284]
[1736090288903,7.48437157,212.57,212.52,2.3532]
[1736090289199,7.48437157,212.57,212.5,1.5284]
[1736090289493,7.48437157,212.55,212.5,1.5284]
[1736090289704,7.48437157,212.55,212.49,10.48437157]
[1736090290200,7.48437157,212.57,212.53,2.3531]
[1736090291402,3.822,212.6,212.55,2.3529]
[1736090291802,8.95387157,212.6,212.53,7.48437157]
[1736090292400,179.19302685,212.73,212.55,7.48437157]
[1736090292593,7.48437157,212.63,212.57,7.48437157]
[1736090292796,2.3519,212.65,212.57,7.48437157]
[1736090293002,7.48437157,212.64,212.57,7.48437157]
[1736090293996,1.5255,212.66,212.63,2.352]
[1736090294503,9.83627157,212.65,212.6,2.3523]
[1736090294700,9.83627157,212.65,212.59,7.48437157]
[1736090295500,9.83627157,212.65,212.61,2.3523]
[1736090297100,7.48437157,212.65,212.61,2.3523]
[1736090298308,9.83647157,212.63,212.57,2.3526]
[1736090298504,7.48437157,212.61,212.57,2.3526]
[1736090298702,7.48437157,212.61,212.56,1.4576]
[1736090299600,7.48437157,212.61,212.55,3.0]
[1736090299830,2.3524,212.6,212.55,3.0]
[1736090300004,2.3524,212.6,212.54,7.48437157]
[1736090300304,7.48437157,212.59,212.53,3.0]
[1736090300605,7.48437157,212.59,212.54,2.353]
[1736090301897,7.48437157,212.57,212.52,2.3532]
[1736090302603,7.48437157,212.55,212.5,11.24867157]
[1736090302805,7.48437157,212.55,212.5,3.7643]
[1736090304101,7.48437157,212.55,212.5,1.4109]
[1736090304304,7.48437157,212.53,212.48,2.3536]
[1736090304805,7.48437157,212.51,212.48,2.3536]
[1736090305106,7.48437157,212.53,212.45,11.94107157]
[1736090305498,7.48437157,212.53,212.48,2.3536]
[1736090306713,3.767,212.57,212.5,2.3534]
[1736090306909,7.48437157,212.56,212.49,7.48437157]
[1736090307206,7.48437157,212.56,212.51,7.48437157]
[1736090308310,3.0,212.61,212.51,7.48437157]
[1736090308512,7.48437157,212.59,212.51,7.48437157]
[1736090308807,7.48437157,212.59,212.51,10.48437157]
[1736090309407,7.48437157,212.59,212.54,2.353]
[1736090311714,7.48437157,212.57,212.54,2.353]
[1736090311916,7.48437157,212.57,212.53,2.3531]
[1736090312509,7.48437157,212.55,212.5,3.0]
[1736090312909,7.48437157,212.53,212.5,3.0]
[1736090313310,7.48437157,212.53,212.47,2.92]
[1736090314415,9.83757157,212.53,212.48,2.3536]
[1736090315221,7.48437157,212.51,212.46,2.3538]
[1736090315416,7.48437157,212.51,212.45,4.3767]
[1736090315815,7.48437157,212.51,212.45,1.4567]
[1736090316018,7.48437157,212.51,212.44,10.42437157]
[1736090316515,7.48437157,212.51,212.47,2.3538]
[1736090318118,2.3538,212.48,212.43,2.3543]
[1736090318321,7.48437157,212.47,212.4,10.42437157]
[1736090318509,7.48437157,212.49,212.42,7.48437157]
[1736090318717,2.3536,212.5,212.43,2.3542]
[1736090319017,7.48437157,212.49,212.43,2.3542]
[1736090319217,7.48437157,212.49,212.42,7.48437157]
[1736090319517,1.5144,212.53,212.42,7.48437157]
[1736090319719,7.48437157,212.49,212.42,7.48437157]
[1736090319919,7.48437157,212.49,212.47,2.3538]
[1736090320109,7.48437157,212.51,212.47,2.3538]
[1736090320712,1.5144,212.53,212.44,7.48437157]
[1736090320912,7.48437157,212.51,212.48,2.3537]
[1736090321310,7.48437157,212.53,212.51,2.3533]
[1736090321509,7.48437157,212.55,212.51,2.3533]
[1736090321819,7.48437157,212.56,212.51,2.3533]
[1736090322010,2.3529,212.55,212.51,2.3533]
[1736090322214,2.3529,212.55,212.5,2.3535]
[1736090322416,7.48437157,212.54,212.5,2.3535]
[1736090323016,7.48437157,212.54,212.46,7.48437157]
[1736090323214,9.83747157,212.54,212.49,2.3536]
[1736090326313,7.48437157,212.52,212.49,2.3536]
[1736090328222,7.48437157,212.52,212.46,7.48437157]
[1736090328425,7.48437157,212.52,212.48,2.3537]
[1736090329530,7.48437157,212.52,212.46,2.3538]
[1736090329717,2.3534,212.51,212.46,2.3538]
[1736090330121,7.48437157,212.52,212.46,2.3538]
[1736090330318,7.48437157,212.54,212.48,2.3537]
[1736090330521,2.94,212.57,212.48,7.48437157]
[1736090330827,10.42437157,212.57,212.52,2.3533]
[1736090331021,7.48437157,212.57,212.52,2.3533]
[1736090331833,7.48437157,212.55,212.52,2.3533]
[1736090332535,7.48437157,212.55,212.53,2.3531]
[1736090341837,9.83697157,212.59,212.54,2.353]
[1736090342534,2.3526,212.58,212.54,2.353]
[1736090342838,1.5269,212.63,212.56,2.3528]
[1736090343141,9.83677157,212.61,212.56,2.3528]
[1736090344535,7.48437157,212.61,212.56,2.3528]
[1736090344739,2.3524,212.6,212.56,2.3528]
[1736090345735,9.83667157,212.61,212.58,2.3526]
[1736090345959,1.5269,212.63,212.58,7.48437157]
[1736090346139,7.48437157,212.64,212.58,7.48437157]
[1736090347440,9.83637157,212.64,212.6,2.3524]
[1736090349038,7.48437157,212.64,212.58,7.48437157]
[1736090349237,4.3564,212.69,212.61,2.3522]
[1736090349442,7.48437157,212.65,212.61,2.3522]
[1736090349646,2.3518,212.66,212.62,2.3521]
[1736090349940,7.48437157,212.7,212.64,7.48437157]
[1736090351544,2.3514,212.69,212.65,2.3517]
[1736090352444,2.3514,212.69,212.64,9.83627157]
[1736090353145,2.3514,212.69,212.65,2.3518]
[1736090356148,9.83567157,212.7,212.66,2.3517]
[1736090356850,7.48437157,212.72,212.66,7.48437157]
[1736090357046,7.48437157,212.74,212.66,7.48437157]
[1736090357252,1.5109,212.75,212.68,7.48437157]
[1736090357450,1.5109,212.75,212.7,7.48437157]
[1736090357656,7.48437157,212.76,212.7,7.48437157]
[1736090357950,7.48437157,212.76,212.71,2.3511]
[1736090358846,9.83507157,212.76,212.72,2.351]
[1736090360556,2.3505,212.77,212.72,2.351]
[1736090360852,2.3505,212.77,212.72,9.83537157]
[1736090361253,2.3504,212.78,212.73,2.3509]
[1736090363048,7.48437157,212.79,212.69,2.8458]
[1736090363354,2.3506,212.76,212.71,2.3511]
[1736090367752,2.3506,212.76,212.72,7.48437157]
[1736090368454,7.48437157,212.78,212.72,9.83537157]
[1736090369053,2.3507,212.75,212.7,2.3512]
[1736090369459,2.3512,212.71,212.69,1.4539]
[1736090369766,2.8809,212.81,212.64,10.34437157]
[1736090369767,7.48437157,212.7,212.64,10.34437157]
[1736090370357,9.83547157,212.72,212.65,2.3518]
[1736090370657,3.4265,212.81,212.66,7.48437157]
[1736090370658,7.48437157,212.74,212.66,7.48437157]
[1736090370859,2.86,212.78,212.7,7.48437157]
[1736090371065,7.48437157,212.76,212.7,9.83557157]
[1736090371968,2.3508,212.74,212.7,9.83557157]
[1736090372165,7.48437157,212.76,212.7,7.48437157]
[1736090372368,7.48437157,212.77,212.71,2.3511]
[1736090372670,2.3507,212.75,212.71,2.3511]
[1736090372869,7.48437157,212.78,212.7,7.48437157]
[1736090373069,2.3506,212.77,212.72,2.351]
[1736090373271,7.48437157,212.78,212.72,2.351]
[1736090373966,7.48437157,212.78,212.7,7.48437157]
[1736090374166,7.48437157,212.76,212.7,9.83557157]
[1736090375463,2.3509,212.74,212.7,9.83557157]
[1736090377572,2.3508,212.74,212.71,2.3511]
[1736090377968,6.2465,212.81,212.72,7.48437157]
[1736090377969,5.7009,212.81,212.72,7.48437157]
[1736090378170,7.48437157,212.77,212.7,1.4037]
[1736090378470,7.48437157,212.75,212.7,1.4037]
[1736090379170,2.3509,212.74,212.7,1.4037]
[1736090380073,2.3509,212.73,212.7,1.4037]
[1736090382375,2.3509,212.73,212.67,7.48437157]
[1736090382376,2.3513,212.7,212.64,2.3519]
[1736090382593,7.48437157,212.71,212.65,10.30437157]
[1736090382765,7.48437157,212.71,212.65,2.82]
[1736090383267,2.3514,212.69,212.65,2.82]
[1736090383875,9.83567157,212.71,212.65,5.1718]
[1736090384175,9.83567157,212.71,212.65,12.65617157]
[1736090386077,9.83567157,212.71,212.66,2.3517]
[1736090386377,2.351,212.72,212.67,7.48437157]
[1736090386577,2.351,212.72,212.67,9.83587157]
[1736090387987,2.351,212.72,212.68,2.3515]
[1736090388479,9.83527157,212.73,212.67,7.48437157]
[1736090389283,7.48437157,212.78,212.71,7.48437157]
[1736090389675,9.83477157,212.78,212.73,7.48437157]
[1736090391581,9.83477157,212.78,212.74,2.3508]
[1736090392180,2.3504,212.78,212.74,2.3508]
[1736090394777,9.83477157,212.79,212.75,2.3507]
[1736090397279,2.3504,212.78,212.74,2.3508]
[1736090397484,7.48437157,212.77,212.71,10.44167157]
[1736090397684,7.48437157,212.77,212.71,8.95157157]
[1736090398485,2.3506,212.76,212.72,2.3509]
[1736090398683,7.48437157,212.77,212.71,8.95157157]
[1736090399688,9.83487157,212.77,212.73,2.3509]
[1736090400084,7.48437157,212.77,212.73,2.3509]
[1736090400285,9.16029697,212.8,212.75,2.3506]
[1736090400488,1.4199,212.81,212.73,7.48437157]
[1736090400679,8.90427157,212.81,212.73,7.48437157]
[1736090401085,2.3503,212.8,212.76,2.3505]
[1736090401286,9.16029697,212.82,212.77,7.48437157]
[1736090401684,7.48437157,212.84,212.79,7.48437157]
[1736090401885,11.01143766,212.84,212.79,7.48437157]
[1736090402182,7.48437157,212.84,212.79,7.48437157]
[1736090402792,7.48437157,212.84,212.8,2.3502]
[1736090403111,7.48437157,212.84,212.77,7.48437157]
[1736090404284,5.0157464,212.87,212.7,2.78]
[1736090404285,7.48437157,212.78,212.7,2.78]
[1736090404482,7.48437157,212.78,212.71,7.48437157]
[1736090405086,12.50771831,212.84,212.73,2.3509]
[1736090405287,7.48437157,212.79,212.73,2.3509]
[1736090405587,7.48437157,212.79,212.73,9.83527157]
[1736090405779,2.3505,212.77,212.73,9.83527157]
[1736090405985,7.48437157,212.77,212.7,2.78]
[1736090406279,7.48437157,212.73,212.68,3.0377]
[1736090406486,2.351,212.72,212.67,13.00689604]
[1736090406686,2.351,212.72,212.67,5.1316]
[1736090407282,2.351,212.72,212.67,2.3516]
[1736090408083,2.3513,212.71,212.65,2.3518]
[1736090408283,11.67978995,212.75,212.65,5.1318]
[1736090408678,2.3513,212.7,212.65,5.1318]
[1736090409594,2.3511,212.72,212.66,2.3517]
[1736090410493,2.3511,212.72,212.65,2.78]
[1736090410694,2.3511,212.72,212.67,2.3516]
[1736090412084,11.67978995,212.75,212.65,2.78]
[1736090412085,2.3509,212.74,212.69,2.3513]
[1736090412887,11.67978995,212.76,212.69,2.3513]
[1736090413086,2.351,212.73,212.69,2.3513]
[1736090414788,2.3511,212.72,212.67,2.3515]
[1736090414991,130.25302685,212.83,212.68,11.67978995]
[1736090415190,14.45978995,212.81,212.68,11.67978995]
[1736090415395,2.3507,212.76,212.71,2.3512]
[1736090415594,12.68650095,212.8,212.71,2.3512]
[1736090415996,9.15813165,212.8,212.71,2.3512]
[1736090416392,2.3508,212.75,212.71,2.3512]
[1736090416794,2.3508,212.75,212.68,11.67978995]
[1736090416993,12.68605315,212.8,212.7,2.3513]
[1736090417800,12.68605315,212.8,212.72,2.351]
[1736090417801,9.15813165,212.8,212.72,2.351]
[1736090418101,14.45978995,212.81,212.72,2.351]
[1736090418601,2.3506,212.76,212.72,2.351]
[1736090420909,2.3508,212.74,212.7,2.3512]
[1736090421201,11.67978995,212.78,212.7,2.78]
[1736090422006,2.351,212.73,212.7,2.78]
[1736090424106,2.3511,212.72,212.7,2.78]
[1736090424307,11.67978995,212.75,212.66,5.6451]
[1736090424899,11.67978995,212.72,212.57,1.4138]
[1736090425102,11.67978995,212.69,212.58,5.7096]
[1736090425298,2.3517,212.66,212.62,2.352]
[1736090425521,2.3517,212.66,212.6,2.78]
[1736090426411,2.3517,212.66,212.62,2.3521]
[1736090427113,11.67978995,212.69,212.56,32.04610937]
[1736090427317,11.67978995,212.66,212.56,2.78]
[1736090428322,2.3523,212.62,212.56,5.1328]
[1736090428514,11.67978995,212.66,212.56,5.1328]
[1736090428813,11.67978995,212.66,212.55,2.78]
[1736090429017,2.3518,212.66,212.55,14.45978995]
[1736090429214,2.3518,212.66,212.56,1.4184]
[1736090429420,14.45978995,212.69,212.56,1.4184]
[1736090430423,2.3518,212.65,212.6,2.3523]
[1736090432418,2.3518,212.65,212.6,5.1323]
[1736090432812,2.3517,212.67,212.6,2.78]
[1736090433011,14.45978995,212.72,212.6,2.78]
[1736090433214,14.45978995,212.72,212.61,1.3848]
[1736090434421,2.3514,212.69,212.64,2.3519]
[1736090435323,2.3513,212.71,212.65,2.3517]
[1736090435523,2.3513,212.71,212.61,13.06458995]
[1736090436319,2.351,212.73,212.64,11.67978995]
[1736090436515,1.4132,212.74,212.65,2.76]
[1736090436722,9.14056015,212.77,212.67,11.67978995]
[1736090437022,2.3508,212.75,212.71,2.3512]
[1736090437225,6.288264,212.79,212.71,2.3512]
[1736090437417,15.42882415,212.79,212.71,2.3512]
[1736090437627,12.66882415,212.79,212.71,2.3512]
[1736090437924,9.14056015,212.79,212.71,2.76]
[1736090438116,1.5139,212.8,212.71,2.76]
[1736090438316,1.5139,212.8,212.71,4.2307]
[1736090438517,3.8642,212.8,212.73,2.3509]
[1736090438723,3.8642,212.8,212.71,4.2307]
[1736090439522,3.8642,212.8,212.74,2.3508]
[1736090439923,2.3503,212.79,212.74,2.3508]
[1736090440621,2.3501,212.81,212.75,2.3506]
[1736090440824,2.3501,212.81,212.73,11.67978995]
[1736090441033,11.67978995,212.86,212.76,2.76]
[1736090442322,2.8038,212.87,212.76,2.76]
[1736090442523,2.3498,212.83,212.78,2.3503]
[1736090445228,1.4081,212.87,212.76,2.76]
[1736090445423,2.3497,212.85,212.79,2.3502]
[1736090446520,2.3497,212.85,212.76,14.43978995]
[1736090446722,2.3497,212.85,212.81,2.35]
[1736090446932,3.7576,212.87,212.81,2.35]
[1736090447324,1.4081,212.87,212.81,2.35]
[1736090447620,2.3493,212.88,212.83,2.3498]
[1736090447826,11.67978995,212.91,212.81,2.76]
[1736090448828,14.43978995,212.91,212.81,2.76]
[1736090450527,2.3496,212.85,212.81,2.76]
[1736090452931,2.3496,212.85,212.81,5.11]
[1736090454330,14.43978995,212.91,212.81,2.76]
[1736090454530,2.3494,212.87,212.82,2.3499]
[1736090454830,14.43978995,212.91,212.82,2.3499]
[1736090455027,14.43978995,212.91,212.81,2.76]
[1736090455227,11.67978995,212.88,212.81,2.76]
[1736090455433,11.67978995,212.88,212.8,1.4327]
[1736090456527,2.3498,212.83,212.8,1.4327]
[1736090459634,2.3498,212.83,212.79,9.81518153]
[1736090464231,2.76,212.91,212.79,7.46498153]
[1736090464431,2.3496,212.86,212.81,9.81498153]
[1736090464836,2.3496,212.86,212.81,7.46498153]
[1736090465838,2.3496,212.86,212.81,9.81488153]
[1736090466137,2.3496,212.86,212.78,2.76]
[1736090466138,2.3498,212.84,212.79,7.46498153]
[1736090467538,2.3498,212.84,212.8,2.3501]
[1736090467735,2.3498,212.84,212.8,9.81508153]
[1736090470441,2.35,212.82,212.78,5.1104]
[1736090470643,7.46498153,212.84,212.78,5.1104]
[1736090472437,2.35,212.82,212.78,5.1104]
[1736090474743,7.46498153,212.84,212.78,2.76]
[1736090475744,2.3498,212.83,212.79,2.3502]
[1736090481548,2.3498,212.83,212.79,8.2902]
[1736090481945,7.46498153,212.82,212.79,5.94]
[1736090482445,4.1491,212.87,212.79,5.94]
[1736090482446,9.81518153,212.8,212.79,5.94]
[1736090482651,9.81518153,212.8,212.79,3.6433]
[1736090486648,9.81518153,212.8,212.73,2.3509]
[1736090486649,7.46498153,212.8,212.73,2.3509]
[1736090486849,9.81558153,212.77,212.73,2.3509]
[1736090487753,2.3507,212.75,212.72,2.351]
[1736090488551,2.3507,212.75,212.7,7.46498153]
[1736090488754,9.81568153,212.75,212.7,2.3512]
[1736090488955,2.3508,212.74,212.7,2.3512]